[Event "FIDE WCCC U8 2018"]
[Site "Santiago de Compostela"]
[Date "2018.11.08"]
[Round "4"]
[White "Woodward, Andy"]
[Black "Villa Tornero, Alex"]
[Result "0-1"]
[ECO "A59"]
[WhiteElo "1607"]
[BlackElo "1441"]
[Annotator "NA RC"]
[PlyCount "102"]
[EventDate "2018.11.04"]
[EventType "swiss"]
[EventCountry "ESP"]
[SourceTitle "playchess.com"]
[Source "ChessBase"]
[SourceQuality "1"]
[TimeControl "40/5400+30:1800+30"]

1. d4 Nf6 2. c4 c5 3. d5 b5 4. cxb5 a6 5. bxa6 Bxa6 6. Nc3 d6 7. e4 Bxf1 8. Kxf1 g6 9. g3 Bg7 10. Kg2 Nbd7 11. Nf3 O-O 12. Qc2 Qb6 13. Bd2 Rfb8 14. Rhb1 Ng4 15. h3 Nge5 16. Nxe5 Nxe5 17. b3 Qa6 18. a3 c4 19. f4 cxb3 20. Qd1 Nc4 21. Qe2 Nxd2 22. Qxd2 Qa5 23. e5 dxe5 24. Ne4 Qxd2+ 25. Nxd2 exf4 26. gxf4 Bxa1 27. Rxa1 b2 28. Rb1 Rxa3 29. Kf2 Ra1 30. Ke2 Rxb1 31. Nxb1 Rc8 32. Kd2 Rc1 33. Na3 b1=Q 34. Nxb1 Rxb1 35. Kc2 Rh1 36. Kd2 Rxh3 37. Ke2 Kg7 38. Kf2 Kf6 39. Kg2 Ra3 40. Kf2 Kf5 41. Ke2 Kxf4 42. Kd2 Rh3 43. Ke2 g5 44. Kd2 Ke4 45. Ke2 Rh2+ 46. Kf1 Ke3 47. Kg1 Rf2 48. Kh1 Kf3 49. d6 exd6 50. Kg1 Kg3 51. Kh1 Rf1# 0-1

[Event "FIDE WCCC U8 2018"]
[Site "Santiago de Compostela"]
[Date "2018.11.08"]
[Round "4"]
[White "Golovchenko, Bogdan"]
[Black "Nurgaliyev, Sauat"]
[Result "1-0"]
[ECO "D58"]
[WhiteElo "1556"]
[BlackElo "1764"]
[Annotator "NA RC"]
[PlyCount "141"]
[EventDate "2018.11.04"]
[EventType "swiss"]
[EventCountry "ESP"]
[SourceTitle "playchess.com"]
[Source "ChessBase"]
[SourceQuality "1"]
[TimeControl "40/5400+30:1800+30"]

1. d4 {[%emt 0:00:00]} Nf6 {[%emt 0:00:00]} 2. Nf3 {[%emt 0:00:07]} e6 {[%emt 0:00:02]} 3. c4 {[%emt 0:00:38]} d5 {[%emt 0:00:08]} 4. Nc3 {[%emt 0:00:47]} Be7 {[%emt 0:00:35]} 5. Bg5 {[%emt 0:01:25]} O-O {[%emt 0:00:26]} 6. e3 {[%emt 0:00:31]} h6 {[%emt 0:00:45]} 7. Bh4 {[%emt 0:00:35]} b6 {[%emt 0:00:53]} 8. Qc2 {[%emt 0:06:28]} Bb7 {[%emt 0:10:54]} 9. cxd5 {[%emt 0:01:48]} exd5 {[%emt 0:04:46]} 10. Bd3 {[%emt 0:00:45]} c5 {[%emt 0:04:44]} 11. O-O {[%emt 0:00:41]} Nc6 {[%emt 0:02:24]} 12. a3 {[%emt 0:02:26]} c4 {[%emt 0:08:35]} 13. Bf5 {[%emt 0:02:22]} Re8 {[%emt 0:02:58]} 14. Rad1 {[%emt 0:06:59]} a6 {[%emt 0:04:17]} 15. Ne5 {[%emt 0:09:54]} Na5 {[%emt 0:13:38]} 16. f4 {[%emt 0:07:22]} Qc7 {[%emt 0:05:42]} 17. Qe2 {[%emt 0:07:01]} Nh7 {[%emt 0:11:07]} 18. Bxe7 {[%emt 0:03:45]} Qxe7 {[%emt 0:01:17]} 19. Rf3 {[%emt 0:02:02]} Qf6 {[%emt 0:05:49]} 20. Bb1 {[%emt 0:01:11]} Rad8 {[%emt 0:01:32]} 21. Rg3 {[%emt 0:01:56]} Bc8 {[%emt 0:02:37]} 22. Qh5 {[%emt 0:02:55]} Rf8 {[%emt 0:05:42]} 23. f5 {[%emt 0:05:20]} Kh8 {[%emt 0:02:10]} 24. Rf1 {[%emt 0:02:05]} Nc6 {[%emt 0:03:36]} 25. Ng4 {[%emt 0:00:44]} Qg5 {[%emt 0:00:49]} 26. Qh3 {[%emt 0:02:16]} Ne7 {[%emt 0:03:12]} 27. Ne5 {[%emt 0:03:55]} Qf6 {[%emt 0:00:06]} 28. Qh5 {[%emt 0:00:41]} Nc6 {[%emt 0:01:08]} 29. Nxc6 {[%emt 0:00:25]} Qxc6 {[%emt 0:00:08]} 30. Qe2 {[%emt 0:00:36]} Nf6 {[%emt 0:01:08]} 31. Rf4 {[%emt 0:03:50]} Qd6 {[%emt 0:01:06]} 32. Rf1 {[%emt 0:05:27]} Rde8 {[%emt 0:01:01]} 33. Rh3 {[%emt 0:01:06]} b5 {[%emt 0:01:22]} 34. g4 {[%emt 0:00:55]} Nh7 {[%emt 0:00:31]} 35. f6 {[%emt 0:01:47]} Nxf6 {[%emt 0:00:46]} 36. Qc2 {[%emt 0:00:30]} Ne4 {[%emt 0:00:55]} 37. Rf4 {[%emt 0:01:04]} Bb7 {[%emt 0:01:06]} 38. Nxe4 {[%emt 0:00:32]} dxe4 {[%emt 0:00:10]} 39. g5 {[%emt 0:00:18]} Qg6 {[%emt 0:00:25]} 40. Kh1 {[%emt 0:00:00]} Qxg5 {[%emt 0:00:00]} 41. Rg3 {[%emt 0:01:24]} Qh5 {[%emt 0:04:23]} 42. Rfg4 {[%emt 0:01:12]} Rg8 {[%emt 0:02:58]} 43. Qg2 {[%emt 0:00:42]} Bc8 {[%emt 0:01:41]} 44. Rf4 {[%emt 0:00:19]} Bb7 {[%emt 0:05:58]} 45. Bc2 {[%emt 0:00:56]} Bc6 {[%emt 0:03:51]} 46. Rh3 {[%emt 0:00:43]} Qd5 {[%emt 0:02:37]} 47. Rfh4 {[%emt 0:01:30]} Re6 {[%emt 0:03:36]} 48. Rh5 {[%emt 0:01:53]} Qd6 {[%emt 0:01:52]} 49. Qg5 {[%emt 0:01:50]} Rg6 {[%emt 0:02:02]} 50. Qf5 {[%emt 0:00:15]} Bd7 {[%emt 0:02:11]} 51. Qxe4 {[%emt 0:00:48]} Bxh3 {[%emt 0:00:12]} 52. Rxh3 {[%emt 0:00:02]} Qc6 {[%emt 0:00:45]} 53. d5 {[%emt 0:00:27]} Qf6 {[%emt 0:00:49]} 54. Rf3 {[%emt 0:00:53]} Qxb2 {[%emt 0:00:41]} 55. Rf1 {[%emt 0:00:28]} Qxa3 {[%emt 0:04:30]} 56. Qd4 {[%emt 0:00:30]} Qe7 {[%emt 0:00:48]} 57. Bxg6 {[%emt 0:00:34]} fxg6 {[%emt 0:00:01]} 58. d6 {[%emt 0:00:29]} Qd7 {[%emt 0:00:17]} 59. e4 {[%emt 0:00:09]} Qh3 {[%emt 0:00:20]} 60. Rf2 {[%emt 0:02:29]} a5 {[%emt 0:00:37]} 61. d7 {[%emt 0:00:09]} Qd3 {[%emt 0:01:03]} 62. Qxd3 {[%emt 0:00:29]} cxd3 {[%emt 0:00:04]} 63. e5 {[%emt 0:00:02]} a4 {[%emt 0:01:00]} 64. e6 {[%emt 0:00:03]} a3 {[%emt 0:00:35]} 65. e7 {[%emt 0:00:05]} a2 {[%emt 0:00:27]} 66. Rxa2 {[%emt 0:00:05]} b4 {[%emt 0:00:06]} 67. d8=Q {[%emt 0:00:07]} Rxd8 {[%emt 0:00:22]} 68. exd8=Q+ {[%emt 0:00:11]} Kh7 {[%emt 0:00:03]} 69. Ra8 {[%emt 0:00:20]} g5 {[%emt 0:00:06]} 70. Qxd3+ {[%emt 0:00:04]} g6 {[%emt 0:00:05]} 71. Qd7# {[%emt 0:00:03]} 1-0

[Event "FIDE WCCC U8 2018"]
[Site "Santiago de Compostela"]
[Date "2018.11.08"]
[Round "4"]
[White "Prada Villagrasa, Pau Manel"]
[Black "Lu, Miaoyi"]
[Result "0-1"]
[ECO "A06"]
[WhiteElo "1530"]
[BlackElo "1717"]
[Annotator "NA RC"]
[PlyCount "60"]
[EventDate "2018.11.04"]
[EventType "swiss"]
[EventCountry "ESP"]
[SourceTitle "playchess.com"]
[Source "ChessBase"]
[SourceQuality "1"]
[TimeControl "40/5400+30:1800+30"]

1. Nf3 {[%emt 0:01:13]} d5 {[%emt 0:00:00]} 2. b3 {[%emt 0:02:10]} Bf5 {[%emt 0:01:59]} 3. Bb2 {[%emt 0:02:48]} e6 {[%emt 0:00:53]} 4. e3 {[%emt 0:02:36]} Nf6 {[%emt 0:01:25]} 5. h3 {[%emt 0:00:49]} h6 {[%emt 0:04:19]} 6. d4 {[%emt 0:03:20]} Bd6 {[%emt 0:00:59]} 7. Be2 {[%emt 0:00:53]} Nbd7 {[%emt 0:04:37]} 8. O-O {[%emt 0:02:51]} O-O {[%emt 0:01:05]} 9. Ne5 {[%emt 0:01:52]} c5 {[%emt 0:13:06]} 10. f4 {[%emt 0:01:58]} Ne4 {[%emt 0:02:06]} 11. Qe1 {[%emt 0:05:34]} Be7 {[%emt 0:10:28]} 12. Nxd7 {[%emt 0:02:01]} Bh4 {[%emt 0:02:39]} 13. Qd1 {[%emt 0:03:19]} Qxd7 {[%emt 0:00:16]} 14. dxc5 {[%emt 0:01:18]} Ng3 {[%emt 0:08:53]} 15. Re1 {[%emt 0:03:32]} Rac8 {[%emt 0:03:01]} 16. Bf3 {[%emt 0:02:43]} Qe7 {[%emt 0:06:30]} 17. Qd2 {[%emt 0:01:12]} Ne4 {[%emt 0:02:05]} 18. Bxe4 {[%emt 0:01:51]} Bxe1 {[%emt 0:00:07]} 19. Qxe1 {[%emt 0:00:16]} Bxe4 {[%emt 0:00:15]} 20. b4 {[%emt 0:01:45]} b6 {[%emt 0:02:53]} 21. Qc3 {[%emt 0:02:25]} f6 {[%emt 0:00:52]} 22. c6 {[%emt 0:00:57]} d4 {[%emt 0:03:42]} 23. Qxd4 {[%emt 0:00:57]} Bxc6 {[%emt 0:00:06]} 24. b5 {[%emt 0:01:47]} Rfd8 {[%emt 0:00:23]} 25. Qa4 {[%emt 0:02:34]} Rd1+ {[%emt 0:01:52]} 26. Kh2 {[%emt 0:00:18]} Ba8 {[%emt 0:01:07]} 27. Qb3 {[%emt 0:06:27]} Qd7 {[%emt 0:05:22]} 28. Bd4 {[%emt 0:02:54]} Qd5 {[%emt 0:00:43]} 29. Qxd5 {[%emt 0:01:22]} Bxd5 {[%emt 0:00:10]} 30. c3 {[%emt 0:02:41]} Be4 {[%emt 0:00:23]} 0-1

[Event "FIDE WCCC U8 2018"]
[Site "Santiago de Compostela"]
[Date "2018.11.08"]
[Round "4"]
[White "Khazhatuly, Alikhan"]
[Black "Schnaider, Ilan"]
[Result "1/2-1/2"]
[ECO "C05"]
[WhiteElo "1474"]
[BlackElo "1723"]
[Annotator "NA RC"]
[PlyCount "77"]
[EventDate "2018.11.04"]
[EventType "swiss"]
[EventCountry "ESP"]
[SourceTitle "playchess.com"]
[Source "ChessBase"]
[SourceQuality "1"]
[TimeControl "40/5400+30:1800+30"]

1. e4 {[%emt 0:00:00]} e6 {[%emt 0:01:17]} 2. d4 {[%emt 0:00:00]} d5 {[%emt 0:00:09]} 3. Nd2 {[%emt 0:00:00]} Nf6 {[%emt 0:00:06]} 4. e5 {[%emt 0:00:00]} Nfd7 {[%emt 0:00:58]} 5. Bd3 {[%emt 0:00:00]} c5 {[%emt 0:00:17]} 6. c3 {[%emt 0:00:00]} Nc6 {[%emt 0:00:04]} 7. Ne2 {[%emt 0:02:17]} Qb6 {[%emt 0:00:15]} 8. Nf3 {[%emt 0:13:21]} Be7 {[%emt 0:02:43]} 9. O-O {[%emt 0:00:30]} O-O {[%emt 0:02:08]} 10. Bc2 {[%emt 0:10:20]} f6 {[%emt 0:01:24]} 11. Qd3 {[%emt 0:34:30]} g6 {[%emt 0:01:29]} 12. exf6 {[%emt 0:05:31]} Bxf6 {[%emt 0:00:17]} 13. Bh6 {[%emt 0:04:08]} Bg7 {[%emt 0:00:33]} 14. Bxg7 {[%emt 0:03:32]} Kxg7 {[%emt 0:00:08]} 15. b3 {[%emt 0:00:22]} cxd4 {[%emt 0:11:53]} 16. Nexd4 {[%emt 0:12:56]} Nc5 {[%emt 0:06:28]} 17. Qe3 {[%emt 0:00:56]} a5 {[%emt 0:01:03]} 18. a3 {[%emt 0:05:00]} Nxd4 {[%emt 0:04:43]} 19. Qxd4+ {[%emt 0:00:34]} Kg8 {[%emt 0:01:03]} 20. b4 {[%emt 0:03:44]} Nd7 {[%emt 0:00:22]} 21. Qxb6 {[%emt 0:00:01]} Nxb6 {[%emt 0:00:03]} 22. Rfe1 {[%emt 0:00:25]} axb4 {[%emt 0:00:21]} 23. axb4 {[%emt 0:00:04]} Bd7 {[%emt 0:00:39]} 24. Ne5 {[%emt 0:01:33]} Bb5 {[%emt 0:00:21]} 25. Nd3 {[%emt 0:00:54]} Bxd3 {[%emt 0:00:39]} 26. Bxd3 {[%emt 0:00:00]} Rxa1 {[%emt 0:00:12]} 27. Rxa1 {[%emt 0:00:01]} Rc8 {[%emt 0:00:22]} 28. Ra3 {[%emt 0:00:52]} Nc4 {[%emt 0:00:17]} 29. Bxc4 {[%emt 0:00:08]} Rxc4 {[%emt 0:00:06]} 30. Kf1 {[%emt 0:00:02]} Kf7 {[%emt 0:01:15]} 31. Ke2 {[%emt 0:00:29]} Ke7 {[%emt 0:00:03]} 32. Kd3 {[%emt 0:00:06]} Kd6 {[%emt 0:00:19]} 33. Ra7 {[%emt 0:00:47]} Rc7 {[%emt 0:00:46]} 34. Ra1 {[%emt 0:00:31]} e5 {[%emt 0:00:21]} 35. f3 {[%emt 0:01:39]} Rc4 {[%emt 0:00:40]} 36. Ra7 {[%emt 0:00:18]} Rc7 {[%emt 0:00:07]} 37. Ra1 {[%emt 0:00:04]} Rc4 {[%emt 0:00:09]} 38. Ra7 {[%emt 0:00:04]} Rc7 {[%emt 0:00:38]} 39. Ra1 {[%emt 0:01:29]} 1/2-1/2

[Event "FIDE WCCC U8 2018"]
[Site "Santiago de Compostela"]
[Date "2018.11.08"]
[Round "4"]
[White "Tulendinov, Dinmukhammed"]
[Black "Usov, Aleksandr E."]
[Result "0-1"]
[ECO "B18"]
[WhiteElo "1430"]
[BlackElo "1640"]
[Annotator "NA RC"]
[PlyCount "81"]
[EventDate "2018.11.04"]
[EventType "swiss"]
[EventCountry "ESP"]
[SourceTitle "playchess.com"]
[Source "ChessBase"]
[SourceQuality "1"]
[TimeControl "40/5400+30:1800+30"]

1. e4 {[%emt 0:00:00]} c6 {[%emt 0:00:00]} 2. d4 {[%emt 0:00:00]} d5 {[%emt 0:00:00]} 3. Nd2 {[%emt 0:00:00]} dxe4 {[%emt 0:00:07]} 4. Nxe4 {[%emt 0:02:10]} Bf5 {[%emt 0:00:12]} 5. Ng3 {[%emt 0:02:55]} Bg6 {[%emt 0:00:11]} 6. Nf3 {[%emt 0:00:18]} Nd7 {[%emt 0:00:09]} 7. Bd3 {[%emt 0:02:19]} Bxd3 {[%emt 0:00:14]} 8. Qxd3 {[%emt 0:01:26]} e6 {[%emt 0:00:11]} 9. O-O {[%emt 0:01:09]} Ngf6 {[%emt 0:00:05]} 10. b3 {[%emt 0:01:19]} Bd6 {[%emt 0:00:26]} 11. c4 {[%emt 0:02:15]} O-O {[%emt 0:00:29]} 12. Bb2 {[%emt 0:01:46]} Qc7 {[%emt 0:03:03]} 13. Rad1 Rad8 {[%emt 0:00:41]} 14. Qc2 {[%emt 0:20:24]} Rfe8 {[%emt 0:01:40]} 15. Rfe1 {[%emt 0:00:43]} c5 {[%emt 0:00:48]} 16. Ne2 {[%emt 0:00:27]} a6 {[%emt 0:03:48]} 17. h3 {[%emt 0:06:58]} cxd4 {[%emt 0:01:53]} 18. Nexd4 {[%emt 0:02:04]} Nb8 {[%emt 0:15:59]} 19. a3 {[%emt 0:07:07]} Be7 {[%emt 0:01:58]} 20. b4 {[%emt 0:07:32]} Rc8 {[%emt 0:03:39]} 21. Rc1 {[%emt 0:02:45]} Nc6 {[%emt 0:00:22]} 22. Qa4 {[%emt 0:12:58]} Nxd4 {[%emt 0:00:44]} 23. Bxd4 {[%emt 0:02:55]} Red8 {[%emt 0:06:07]} 24. Rc2 {[%emt 0:07:33]} Qd7 {[%emt 0:01:40]} 25. Qxd7 {[%emt 0:01:16]} Rxd7 {[%emt 0:00:22]} 26. Rec1 {[%emt 0:01:37]} h6 {[%emt 0:02:35]} 27. c5 {[%emt 0:03:53]} Nd5 {[%emt 0:00:57]} 28. Ne5 Rdc7 {[%emt 0:01:29]} 29. c6 {[%emt 0:05:13]} b5 {[%emt 0:01:34]} 30. Nd7 {[%emt 0:00:19]} Bg5 {[%emt 0:00:15]} 31. Be5 {[%emt 0:03:08]} Bxc1 {[%emt 0:00:32]} 32. Bxc7 {[%emt 0:00:13]} Bxa3 {[%emt 0:01:56]} 33. Ba5 {[%emt 0:00:24]} Bxb4 {[%emt 0:02:48]} 34. Bb6 {[%emt 0:00:53]} Bc3 {[%emt 0:02:49]} 35. c7 {[%emt 0:02:13]} Nxb6 {[%emt 0:00:12]} 36. Nxb6 {[%emt 0:01:09]} Rxc7 {[%emt 0:00:08]} 37. Kf1 {[%emt 0:00:34]} Be5 {[%emt 0:01:20]} 38. Ra2 {[%emt 0:00:16]} Kh7 {[%emt 0:00:40]} 39. Rxa6 {[%emt 0:00:13]} Rc6 {[%emt 0:00:09]} 40. Ke2 {[%emt 0:00:00]} Bd4 {[%emt 0:00:00]} 41. Ke1 0-1

[Event "FIDE WCCC U8 2018"]
[Site "Santiago de Compostela"]
[Date "2018.11.08"]
[Round "4"]
[White "Sowinski, Pawel"]
[Black "Mammadov, Ziya"]
[Result "0-1"]
[ECO "E81"]
[WhiteElo "1318"]
[BlackElo "1446"]
[Annotator "NA RC"]
[PlyCount "100"]
[EventDate "2018.11.04"]
[EventType "swiss"]
[EventCountry "ESP"]
[SourceTitle "playchess.com"]
[Source "ChessBase"]
[SourceQuality "1"]
[TimeControl "40/5400+30:1800+30"]

1. d4 {[%emt 0:00:00]} Nf6 {[%emt 0:00:46]} 2. c4 {[%emt 0:00:02]} d6 {[%emt 0:00:05]} 3. Nc3 {[%emt 0:00:17]} g6 {[%emt 0:00:08]} 4. e4 {[%emt 0:00:12]} Bg7 {[%emt 0:00:03]} 5. f3 {[%emt 0:00:24]} O-O {[%emt 0:00:07]} 6. Be3 {[%emt 0:00:29]} Nbd7 {[%emt 0:00:08]} 7. Nge2 {[%emt 0:00:27]} e5 {[%emt 0:00:13]} 8. d5 {[%emt 0:00:22]} h6 {[%emt 0:01:19]} 9. g4 {[%emt 0:02:07]} Nh7 {[%emt 0:02:49]} 10. Ng3 {[%emt 0:01:06]} Nhf6 {[%emt 0:11:34]} 11. h4 {[%emt 0:00:19]} Kh7 {[%emt 0:05:00]} 12. Nce2 {[%emt 0:04:38]} Nb6 {[%emt 0:01:13]} 13. b3 {[%emt 0:01:39]} c6 {[%emt 0:07:02]} 14. g5 {[%emt 0:00:39]} Ng8 {[%emt 0:07:09]} 15. h5 {[%emt 0:02:40]} hxg5 {[%emt 0:00:42]} 16. hxg6+ {[%emt 0:00:21]} Kxg6 {[%emt 0:00:14]} 17. Nf5 {[%emt 0:05:38]} cxd5 {[%emt 0:03:57]} 18. Nxg7 {[%emt 0:01:31]} Kxg7 {[%emt 0:02:20]} 19. cxd5 {[%emt 0:00:40]} f6 {[%emt 0:01:25]} 20. Kf2 {[%emt 0:01:10]} Nh6 {[%emt 0:01:45]} 21. Ng3 {[%emt 0:00:51]} Rh8 {[%emt 0:02:02]} 22. Qd2 {[%emt 0:06:35]} Bd7 {[%emt 0:05:31]} 23. Bd3 {[%emt 0:01:36]} Kg6 {[%emt 0:07:04]} 24. Rag1 {[%emt 0:00:48]} Qe7 {[%emt 0:01:27]} 25. a4 {[%emt 0:06:35]} Rag8 {[%emt 0:07:14]} 26. Bb5 {[%emt 0:13:39]} Bxb5 {[%emt 0:00:25]} 27. axb5 {[%emt 0:00:07]} Qd7 {[%emt 0:01:31]} 28. Nh5 {[%emt 0:02:18]} Nf7 {[%emt 0:01:56]} 29. f4 {[%emt 0:02:25]} exf4 {[%emt 0:05:07]} 30. Nxf4+ {[%emt 0:00:18]} Kg7 {[%emt 0:00:07]} 31. Ne6+ {[%emt 0:00:16]} Kg6 {[%emt 0:00:09]} 32. Qe2 {[%emt 0:16:19]} Ne5 {[%emt 0:01:39]} 33. Bd4 {[%emt 0:00:44]} Kf7 {[%emt 0:00:57]} 34. Bxe5 {[%emt 0:00:22]} dxe5 {[%emt 0:00:56]} 35. Qf3 {[%emt 0:05:27]} Qe7 {[%emt 0:09:34]} 36. Rxh8 {[%emt 0:03:31]} Rxh8 {[%emt 0:00:05]} 37. Rc1 {[%emt 0:01:44]} Qb4 {[%emt 0:05:22]} 38. Kg3 {[%emt 0:06:25]} Qd2 {[%emt 0:02:00]} 39. Rc7+ {[%emt 0:01:33]} Ke8 {[%emt 0:00:03]} 40. Ng7+ {[%emt 0:00:00]} Kd8 {[%emt 0:00:00]} 41. Qxf6+ {[%emt 0:00:27]} Kxc7 {[%emt 0:00:23]} 42. Ne6+ {[%emt 0:00:04]} Kd6 {[%emt 0:00:39]} 43. Nc7+ {[%emt 0:12:42]} Kc5 {[%emt 0:02:01]} 44. Qe7+ {[%emt 0:00:52]} Kd4 {[%emt 0:00:13]} 45. Ne6+ {[%emt 0:00:42]} Kc3 {[%emt 0:00:57]} 46. Qc7+ {[%emt 0:04:38]} Kxb3 {[%emt 0:01:28]} 47. Nc5+ {[%emt 0:01:37]} Ka2 {[%emt 0:02:50]} 48. d6 {[%emt 0:01:09]} Qf4+ {[%emt 0:00:19]} 49. Kg2 {[%emt 0:00:06]} Rh2+ 50. Kg1 {[%emt 0:00:33]} Qf2# {[%emt 0:00:05]} 0-1

[Event "FIDE WCCC U8 2018"]
[Site "Santiago de Compostela"]
[Date "2018.11.09"]
[Round "5"]
[White "Nurgaliyev, Sauat"]
[Black "Prada Villagrasa, Pau Manel"]
[Result "1-0"]
[ECO "A40"]
[WhiteElo "1764"]
[BlackElo "1530"]
[Annotator "NA RC"]
[PlyCount "61"]
[EventDate "2018.11.04"]
[EventType "swiss"]
[EventCountry "ESP"]
[SourceTitle "playchess.com"]
[Source "ChessBase"]
[SourceQuality "1"]
[TimeControl "40/5400+30:1800+30"]

1. d4 {[%emt 0:00:00]} e6 {[%emt 0:01:22]} 2. Nf3 {[%emt 0:00:00]} f5 {[%emt 0:00:52]} 3. g3 {[%emt 0:00:43]} Nf6 {[%emt 0:01:09]} 4. Bg2 {[%emt 0:00:57]} d5 {[%emt 0:00:45]} 5. O-O {[%emt 0:02:15]} c5 {[%emt 0:01:24]} 6. c4 {[%emt 0:02:27]} Nc6 {[%emt 0:02:20]} 7. Nc3 {[%emt 0:03:49]} Be7 {[%emt 0:01:07]} 8. dxc5 {[%emt 0:04:13]} Bxc5 {[%emt 0:01:37]} 9. Ng5 {[%emt 0:01:47]} d4 {[%emt 0:02:25]} 10. Na4 {[%emt 0:04:59]} Bd6 {[%emt 0:00:46]} 11. Qb3 {[%emt 0:07:09]} h6 {[%emt 0:01:50]} 12. Nxe6 {[%emt 0:07:49]} Bxe6 {[%emt 0:01:25]} 13. Qxb7 {[%emt 0:00:07]} O-O {[%emt 0:11:38]} 14. c5 {[%emt 0:15:23]} Bd7 {[%emt 0:04:02]} 15. Qb3+ {[%emt 0:01:19]} Kh8 {[%emt 0:03:18]} 16. cxd6 {[%emt 0:00:20]} Rb8 {[%emt 0:01:43]} 17. Qd1 {[%emt 0:01:35]} Nb4 {[%emt 0:01:24]} 18. Nc5 {[%emt 0:02:53]} Qb6 {[%emt 0:01:31]} 19. Nxd7 {[%emt 0:01:25]} Nxd7 {[%emt 0:00:09]} 20. a3 {[%emt 0:00:48]} Na6 {[%emt 0:01:19]} 21. Qa4 {[%emt 0:02:11]} Nac5 {[%emt 0:05:56]} 22. Qxd4 {[%emt 0:05:38]} Qa6 {[%emt 0:01:37]} 23. Bxh6 {[%emt 0:07:59]} Rf6 {[%emt 0:00:14]} 24. Bg5 {[%emt 0:00:54]} Nb3 {[%emt 0:01:16]} 25. Qh4+ {[%emt 0:00:17]} Kg8 {[%emt 0:01:14]} 26. Bd5+ {[%emt 0:00:08]} Rf7 {[%emt 0:00:52]} 27. Bxf7+ {[%emt 0:01:09]} Kxf7 {[%emt 0:00:15]} 28. Rad1 {[%emt 0:00:56]} Rb7 {[%emt 0:04:25]} 29. Qh5+ {[%emt 0:03:23]} Kg8 {[%emt 0:00:41]} 30. Rd5 {[%emt 0:01:30]} Nf8 {[%emt 0:03:41]} 31. Qe8 {[%emt 0:02:20]} 1-0

[Event "FIDE WCCC U8 2018"]
[Site "Santiago de Compostela"]
[Date "2018.11.09"]
[Round "5"]
[White "Schnaider, Ilan"]
[Black "Chen, Zhiyuan"]
[Result "0-1"]
[ECO "B89"]
[WhiteElo "1723"]
[BlackElo "1459"]
[Annotator "NA RC"]
[PlyCount "84"]
[EventDate "2018.11.04"]
[EventType "swiss"]
[EventCountry "ESP"]
[SourceTitle "playchess.com"]
[Source "ChessBase"]
[SourceQuality "1"]
[TimeControl "40/5400+30:1800+30"]

1. e4 {[%emt 0:00:00]} c5 {[%emt 0:00:00]} 2. Nf3 {[%emt 0:00:00]} d6 {[%emt 0:00:00]} 3. d4 {[%emt 0:00:00]} cxd4 {[%emt 0:00:00]} 4. Nxd4 {[%emt 0:00:02]} Nf6 {[%emt 0:00:00]} 5. Nc3 {[%emt 0:00:10]} Nc6 {[%emt 0:00:00]} 6. Bc4 {[%emt 0:00:09]} e6 {[%emt 0:00:01]} 7. Be3 {[%emt 0:00:14]} Qc7 {[%emt 0:00:14]} 8. Bb3 {[%emt 0:00:47]} a6 {[%emt 0:00:23]} 9. Qe2 {[%emt 0:00:33]} Be7 {[%emt 0:00:42]} 10. f3 {[%emt 0:00:32]} O-O {[%emt 0:00:18]} 11. O-O-O {[%emt 0:00:18]} Nxd4 {[%emt 0:00:18]} 12. Rxd4 {[%emt 0:00:17]} b5 {[%emt 0:00:08]} 13. g4 {[%emt 0:00:12]} Bb7 {[%emt 0:00:20]} 14. g5 {[%emt 0:00:14]} Nd7 {[%emt 0:00:08]} 15. h4 {[%emt 0:00:18]} Nc5 {[%emt 0:01:49]} 16. Kb1 {[%emt 0:00:19]} Bc6 {[%emt 0:00:51]} 17. h5 {[%emt 0:01:54]} Nxb3 {[%emt 0:05:41]} 18. cxb3 {[%emt 0:00:13]} f5 {[%emt 0:00:07]} 19. g6 {[%emt 0:12:27]} Bf6 {[%emt 0:01:33]} 20. gxh7+ {[%emt 0:00:16]} Kh8 {[%emt 0:01:19]} 21. Rdd1 {[%emt 0:17:01]} b4 {[%emt 0:00:10]} 22. Na4 {[%emt 0:00:35]} fxe4 {[%emt 0:00:06]} 23. f4 {[%emt 0:02:08]} Bb5 {[%emt 0:09:47]} 24. Qf2 {[%emt 0:01:33]} Bd3+ {[%emt 0:00:13]} 25. Ka1 {[%emt 0:03:03]} Rac8 {[%emt 0:01:21]} 26. Rc1 {[%emt 0:02:34]} Qb7 {[%emt 0:01:00]} 27. Nb6 {[%emt 0:00:59]} Rxc1+ {[%emt 0:02:58]} 28. Rxc1 {[%emt 0:00:42]} Qf7 {[%emt 0:00:22]} 29. Qd2 {[%emt 0:02:14]} Qxh5 {[%emt 0:05:09]} 30. Nd7 {[%emt 0:01:59]} Rf7 {[%emt 0:03:11]} 31. Rc8+ Kxh7 32. Nf8+ {[%emt 0:06:06]} Rxf8 {[%emt 0:06:14]} 33. Rxf8 {[%emt 0:00:46]} Qh1+ {[%emt 0:00:56]} 34. Qc1 {[%emt 0:00:09]} Qxc1+ {[%emt 0:00:02]} 35. Bxc1 {[%emt 0:00:17]} Kg6 {[%emt 0:00:02]} 36. Bd2 {[%emt 0:01:25]} d5 {[%emt 0:02:38]} 37. Rh8 {[%emt 0:01:14]} Kf5 {[%emt 0:00:22]} 38. Rh1 {[%emt 0:00:53]} a5 {[%emt 0:00:55]} 39. Rg1 {[%emt 0:00:28]} d4 {[%emt 0:01:39]} 40. Rg3 {[%emt 0:00:33]} e3 {[%emt 0:06:07]} 41. Bxe3 {[%emt 0:00:16]} dxe3 {[%emt 0:00:10]} 42. Rxe3 {[%emt 0:00:09]} Be4 {[%emt 0:00:02]} 0-1